[Event "Titled Tuesday Blitz July 05 Late 2022"]
[White "Premnath, R."]
[Black "Kamsky, Gata"]
[WhiteFideId "5021928"]
[BlackFideId "2000024"]
[WhiteElo "2616"]
[BlackElo "2645"]
[Result "0-1"]
[Round "02"]
[TimeControl "180+1"]
[Date "2022.07.05"]
[WhiteClock "0:00:02"]
[BlackClock "0:00:35"]

1. d4 {[%clk 0:03:00]}  d5 {[%clk 0:02:59]} 2. c4 {[%clk 0:03:00]}  c6 {[%clk 0:02:57]} 3. Nc3 {[%clk 0:03:00]}  Nf6 {[%clk 0:02:56]} 4. Nf3 {[%clk 0:03:00]}  a6 {[%clk 0:02:55]} 5. e3 {[%clk 0:02:59]}  Bf5 {[%clk 0:02:52]} 6. Bd3 {[%clk 0:02:58]}  Bg6 {[%clk 0:02:46]} 7. O-O {[%clk 0:02:57]}  e6 {[%clk 0:02:46]} 8. b3 {[%clk 0:02:54]}  Nbd7 {[%clk 0:02:46]} 9. Bb2 {[%clk 0:02:54]}  Bd6 {[%clk 0:02:43]} 10. Qc2 {[%clk 0:02:45]}  O-O {[%clk 0:02:40]} 11. e4 {[%clk 0:02:44]}  dxe4 {[%clk 0:02:40]} 12. Nxe4 {[%clk 0:02:45]}  Nxe4 {[%clk 0:02:39]} 13. Bxe4 {[%clk 0:02:46]}  Nf6 {[%clk 0:02:29]} 14. Bxg6 {[%clk 0:02:45]}  hxg6 {[%clk 0:02:30]} 15. Rfe1 {[%clk 0:02:42]}  Qa5 {[%clk 0:02:27]} 16. h3 {[%clk 0:02:20]}  Rfd8 {[%clk 0:02:25]} 17. Bc3 {[%clk 0:02:15]}  Qf5 {[%clk 0:02:20]} 18. Qxf5 {[%clk 0:02:03]}  gxf5 {[%clk 0:02:19]} 19. Rad1 {[%clk 0:02:04]}  Ne4 {[%clk 0:02:16]} 20. Bb2 {[%clk 0:02:04]}  b5 {[%clk 0:02:14]} 21. Rc1 {[%clk 0:02:01]}  a5 {[%clk 0:02:10]} 22. Red1 {[%clk 0:01:31]}  a4 {[%clk 0:02:04]} 23. d5 {[%clk 0:01:22]}  exd5 {[%clk 0:01:54]} 24. cxd5 {[%clk 0:01:22]}  c5 {[%clk 0:01:55]} 25. Be5 {[%clk 0:01:17]}  b4 {[%clk 0:01:47]} 26. Bxd6 {[%clk 0:00:39]}  Rxd6 {[%clk 0:01:46]} 27. Ne5 {[%clk 0:00:40]}  Nc3 {[%clk 0:01:45]} 28. Rd2 {[%clk 0:00:39]}  a3 {[%clk 0:01:38]} 29. Nc4 {[%clk 0:00:30]}  Rxd5 {[%clk 0:01:35]} 30. Rxd5 {[%clk 0:00:29]}  Nxd5 {[%clk 0:01:35]} 31. Nd6 {[%clk 0:00:29]}  Nc3 {[%clk 0:01:36]} 32. Rc2 {[%clk 0:00:30]}  g6 {[%clk 0:01:34]} 33. f3 {[%clk 0:00:23]}  Rd8 {[%clk 0:01:33]} 34. Nc4 {[%clk 0:00:21]}  Rd3 {[%clk 0:01:28]} 35. Kf2 {[%clk 0:00:20]}  f4 {[%clk 0:01:28]} 36. g3 {[%clk 0:00:20]}  fxg3+ {[%clk 0:01:27]} 37. Kxg3 {[%clk 0:00:20]}  Kg7 {[%clk 0:01:24]} 38. Kg4 {[%clk 0:00:19]}  Kf6 {[%clk 0:01:22]} 39. h4 {[%clk 0:00:19]}  Rd4+ {[%clk 0:01:20]} 40. Kg3 {[%clk 0:00:19]}  Rd3 {[%clk 0:01:11]} 41. Kg4 {[%clk 0:00:19]}  Nd5 {[%clk 0:00:55]} 42. Kg3 {[%clk 0:00:18]}  Rd1 {[%clk 0:00:46]} 43. Na5 {[%clk 0:00:17]}  Nc3 {[%clk 0:00:44]} 44. Nc4 {[%clk 0:00:17]}  Ra1 {[%clk 0:00:44]} 45. Nxa3 {[%clk 0:00:17]}  Rxa2 {[%clk 0:00:44]} 46. Rxa2 {[%clk 0:00:17]}  Nxa2 {[%clk 0:00:44]} 47. Nc4 {[%clk 0:00:17]}  Nc1 {[%clk 0:00:45]} 48. Na5 {[%clk 0:00:17]}  Ke5 {[%clk 0:00:45]} 49. Kg4 {[%clk 0:00:16]}  f6 {[%clk 0:00:45]} 50. f4+ {[%clk 0:00:16]}  Ke6 {[%clk 0:00:42]} 51. f5+ {[%clk 0:00:16]}  gxf5+ {[%clk 0:00:42]} 52. Kf3 {[%clk 0:00:16]}  Nd3 {[%clk 0:00:39]} 53. Nb7 {[%clk 0:00:15]}  c4 {[%clk 0:00:38]} 54. Na5 {[%clk 0:00:14]}  c3 {[%clk 0:00:38]} 55. Ke3 {[%clk 0:00:14]}  c2 {[%clk 0:00:38]} 56. Kxd3 {[%clk 0:00:07]}  c1=Q {[%clk 0:00:38]} 57. h5 {[%clk 0:00:05]}  Qc3+ {[%clk 0:00:37]} 58. Ke2 {[%clk 0:00:04]}  Kf7 {[%clk 0:00:37]} 59. h6 {[%clk 0:00:03]}  Kg6 {[%clk 0:00:37]} 60. Nc4 {[%clk 0:00:02]}  Qxb3 {[%clk 0:00:36]} 61. Ne3 {[%clk 0:00:02]}  f4 {[%clk 0:00:35]} 0-1


[Site "https://www.chess.com"]

[Event "Titled Tuesday Blitz July 05 Late 2022"]
[White "Preotu, Razvan"]
[Black "Al-Tarboush, Ward"]
[WhiteFideId "2613280"]
[BlackFideId "7601450"]
[WhiteElo "2407"]
[BlackElo "2231"]
[Result "1-0"]
[Round "02"]
[TimeControl "180+1"]
[Date "2022.07.05"]
[WhiteClock "0:00:30"]
[BlackClock "0:00:01"]

1. e4 {[%clk 0:03:00]}  e6 {[%clk 0:02:58]} 2. d4 {[%clk 0:02:56]}  d5 {[%clk 0:02:58]} 3. Nc3 {[%clk 0:02:57]}  Nf6 {[%clk 0:02:58]} 4. e5 {[%clk 0:02:57]}  Nfd7 {[%clk 0:02:58]} 5. f4 {[%clk 0:02:56]}  c5 {[%clk 0:02:57]} 6. Nf3 {[%clk 0:02:57]}  Nc6 {[%clk 0:02:57]} 7. Be3 {[%clk 0:02:57]}  a6 {[%clk 0:02:57]} 8. Qd2 {[%clk 0:02:55]}  b5 {[%clk 0:02:57]} 9. Be2 {[%clk 0:02:55]}  Bb7 {[%clk 0:02:49]} 10. Nd1 {[%clk 0:02:51]}  cxd4 {[%clk 0:02:44]} 11. Nxd4 {[%clk 0:02:52]}  Nxd4 {[%clk 0:02:33]} 12. Bxd4 {[%clk 0:02:50]}  Bc5 {[%clk 0:02:21]} 13. c3 {[%clk 0:02:47]}  f6 {[%clk 0:02:00]} 14. exf6 {[%clk 0:02:35]}  Bxd4 {[%clk 0:01:51]} 15. f7+ {[%clk 0:02:26]}  Kxf7 {[%clk 0:01:51]} 16. cxd4 {[%clk 0:02:19]}  Rf8 {[%clk 0:01:45]} 17. O-O {[%clk 0:02:19]}  Kg8 {[%clk 0:01:44]} 18. Nf2 {[%clk 0:02:16]}  Nf6 {[%clk 0:01:44]} 19. Qe3 {[%clk 0:02:11]}  Qb6 {[%clk 0:01:41]} 20. Bf3 {[%clk 0:02:04]}  Rac8 {[%clk 0:01:39]} 21. Nd3 {[%clk 0:02:01]}  Rc2 {[%clk 0:01:24]} 22. Rf2 {[%clk 0:01:35]}  Rxf2 {[%clk 0:01:12]} 23. Qxf2 {[%clk 0:01:35]}  Nd7 {[%clk 0:00:51]} 24. Qe3 {[%clk 0:01:35]}  b4 {[%clk 0:00:41]} 25. Bg4 {[%clk 0:01:24]}  Rf6 {[%clk 0:00:39]} 26. Re1 {[%clk 0:01:17]}  Nf8 {[%clk 0:00:39]} 27. Nc5 {[%clk 0:01:17]}  Bc8 {[%clk 0:00:37]} 28. g3 {[%clk 0:01:07]}  a5 {[%clk 0:00:36]} 29. Rc1 {[%clk 0:01:02]}  Ba6 {[%clk 0:00:29]} 30. b3 {[%clk 0:00:49]}  Bb5 {[%clk 0:00:22]} 31. h4 {[%clk 0:00:45]}  h6 {[%clk 0:00:22]} 32. h5 {[%clk 0:00:45]}  Qd6 {[%clk 0:00:19]} 33. Kg2 {[%clk 0:00:42]}  Bc6 {[%clk 0:00:19]} 34. Nd3 {[%clk 0:00:41]}  Bb5 {[%clk 0:00:18]} 35. Ne5 {[%clk 0:00:41]}  Qb6 {[%clk 0:00:18]} 36. Rc8 {[%clk 0:00:40]}  Ba6 {[%clk 0:00:17]} 37. Nd7 {[%clk 0:00:38]}  Qd6 {[%clk 0:00:14]} 38. Nxf6+ {[%clk 0:00:38]}  gxf6 {[%clk 0:00:13]} 39. Qxe6+ {[%clk 0:00:35]}  Qxe6 {[%clk 0:00:12]} 40. Bxe6+ {[%clk 0:00:36]}  Kg7 {[%clk 0:00:11]} 41. Rc7+ {[%clk 0:00:36]}  Kh8 {[%clk 0:00:11]} 42. Bxd5 {[%clk 0:00:36]}  Bd3 {[%clk 0:00:11]} 43. Rf7 {[%clk 0:00:33]}  Nh7 {[%clk 0:00:11]} 44. Be6 {[%clk 0:00:30]}  Be4+ {[%clk 0:00:05]} 45. Kf2 {[%clk 0:00:30]}  Bf5 {[%clk 0:00:01]} 46. Bxf5 {[%clk 0:00:30]} 1-0


[Site "https://www.chess.com"]

[Event "Titled Tuesday Blitz July 05 Late 2022"]
[White "Romanchuk, Viktor"]
[Black "Sankalp Gupta"]
[WhiteFideId "14109271"]
[BlackFideId "5097010"]
[WhiteElo "2242"]
[BlackElo "2399"]
[Result "0-1"]
[Round "02"]
[TimeControl "180+1"]
[Date "2022.07.05"]
[WhiteClock "0:00:24"]
[BlackClock "0:00:09"]

1. d4 {[%clk 0:03:00]}  Nf6 {[%clk 0:02:56]} 2. c4 {[%clk 0:03:00]}  e6 {[%clk 0:02:55]} 3. Nc3 {[%clk 0:03:00]}  Bb4 {[%clk 0:02:54]} 4. e3 {[%clk 0:03:00]}  O-O {[%clk 0:02:49]} 5. Ne2 {[%clk 0:03:00]}  Re8 {[%clk 0:02:46]} 6. a3 {[%clk 0:03:01]}  Bf8 {[%clk 0:02:45]} 7. Ng3 {[%clk 0:03:01]}  d5 {[%clk 0:02:42]} 8. Be2 {[%clk 0:03:01]}  b6 {[%clk 0:02:37]} 9. cxd5 {[%clk 0:03:00]}  exd5 {[%clk 0:02:36]} 10. O-O {[%clk 0:03:00]}  Bb7 {[%clk 0:02:34]} 11. b4 {[%clk 0:02:59]}  Nbd7 {[%clk 0:02:25]} 12. Bd2 {[%clk 0:02:56]}  g6 {[%clk 0:02:07]} 13. Qb3 {[%clk 0:02:51]}  h5 {[%clk 0:01:59]} 14. Rfc1 {[%clk 0:02:42]}  a6 {[%clk 0:01:50]} 15. a4 {[%clk 0:02:35]}  Bd6 {[%clk 0:01:45]} 16. b5 {[%clk 0:02:30]}  a5 {[%clk 0:01:42]} 17. Bf3 {[%clk 0:02:26]}  Nf8 {[%clk 0:01:31]} 18. Nxd5 {[%clk 0:02:17]}  Bxd5 {[%clk 0:01:29]} 19. Bxd5 {[%clk 0:02:15]}  Nxd5 {[%clk 0:01:30]} 20. Qxd5 {[%clk 0:02:14]}  h4 {[%clk 0:01:29]} 21. Qf3 {[%clk 0:01:53]}  hxg3 {[%clk 0:01:13]} 22. hxg3 {[%clk 0:01:54]}  Nh7 {[%clk 0:01:09]} 23. Rc6 {[%clk 0:01:51]}  Ng5 {[%clk 0:01:04]} 24. Qg4 {[%clk 0:01:45]}  Ne4 {[%clk 0:01:01]} 25. Be1 {[%clk 0:01:44]}  Nf6 {[%clk 0:00:52]} 26. Qf3 {[%clk 0:01:30]}  Qe7 {[%clk 0:00:51]} 27. Rac1 {[%clk 0:01:25]}  Rad8 {[%clk 0:00:43]} 28. R1c2 {[%clk 0:01:21]}  Qe6 {[%clk 0:00:40]} 29. R6c4 {[%clk 0:01:16]}  Ne4 {[%clk 0:00:39]} 30. g4 {[%clk 0:01:11]}  Ng5 {[%clk 0:00:38]} 31. Qe2 {[%clk 0:01:10]}  Qd5 {[%clk 0:00:28]} 32. f3 {[%clk 0:01:07]}  Ne6 {[%clk 0:00:20]} 33. Bf2 {[%clk 0:01:02]}  Qg5 {[%clk 0:00:18]} 34. Qe1 {[%clk 0:00:54]}  Qh6 {[%clk 0:00:16]} 35. Re2 {[%clk 0:00:39]}  Qh2+ {[%clk 0:00:14]} 36. Kf1 {[%clk 0:00:39]}  Rd7 {[%clk 0:00:10]} 37. Bg1 {[%clk 0:00:35]}  Qh1 {[%clk 0:00:10]} 38. Qf2 {[%clk 0:00:32]}  Rde7 {[%clk 0:00:10]} 39. f4 {[%clk 0:00:24]}  Nxf4 {[%clk 0:00:09]} 0-1


[Site "https://www.chess.com"]

[Event "Titled Tuesday Blitz July 05 Late 2022"]
[White "Silva, Kaua Marques"]
[Black "Araujo Sanchez, Josue"]
[WhiteFideId "22701168"]
[BlackFideId "6416896"]
[WhiteElo "2071"]
[BlackElo "2358"]
[Result "0-1"]
[Round "02"]
[TimeControl "180+1"]
[Date "2022.07.06"]
[WhiteClock "0:00:01"]
[BlackClock "0:01:15"]

1. e4 {[%clk 0:03:00]}  c5 {[%clk 0:02:59]} 2. Nf3 {[%clk 0:03:00]}  d6 {[%clk 0:03:00]} 3. Nc3 {[%clk 0:03:00]}  a6 {[%clk 0:02:59]} 4. d4 {[%clk 0:02:59]}  cxd4 {[%clk 0:03:00]} 5. Nxd4 {[%clk 0:03:00]}  Nf6 {[%clk 0:03:01]} 6. Be3 {[%clk 0:02:55]}  e5 {[%clk 0:03:01]} 7. Nf3 {[%clk 0:02:56]}  Be7 {[%clk 0:03:02]} 8. h3 {[%clk 0:02:55]}  Qc7 {[%clk 0:03:02]} 9. a4 {[%clk 0:02:46]}  b6 {[%clk 0:03:00]} 10. Nd2 {[%clk 0:02:29]}  Bb7 {[%clk 0:02:59]} 11. Bc4 {[%clk 0:02:28]}  Nbd7 {[%clk 0:02:59]} 12. Qf3 {[%clk 0:02:17]}  O-O-O {[%clk 0:02:57]} 13. O-O {[%clk 0:02:11]}  Kb8 {[%clk 0:02:56]} 14. b4 {[%clk 0:02:09]}  Rhf8 {[%clk 0:02:52]} 15. a5 {[%clk 0:02:06]}  b5 {[%clk 0:02:51]} 16. Nxb5 {[%clk 0:01:47]}  axb5 {[%clk 0:02:51]} 17. Bxb5 {[%clk 0:01:48]}  Nxe4 {[%clk 0:02:21]} 18. Nxe4 {[%clk 0:01:29]}  f5 {[%clk 0:02:21]} 19. Qe2 {[%clk 0:01:01]}  Bxe4 {[%clk 0:02:14]} 20. c4 {[%clk 0:00:51]}  Ba8 {[%clk 0:01:58]} 21. a6 {[%clk 0:00:45]}  Nf6 {[%clk 0:01:51]} 22. a7+ {[%clk 0:00:44]}  Kc8 {[%clk 0:01:52]} 23. Qa2 {[%clk 0:00:27]}  Rd7 {[%clk 0:01:43]} 24. Qa6+ {[%clk 0:00:20]}  Qb7 {[%clk 0:01:43]} 25. Bxd7+ {[%clk 0:00:17]}  Kxd7 {[%clk 0:01:42]} 26. Qxb7+ {[%clk 0:00:12]}  Bxb7 {[%clk 0:01:41]} 27. Rfd1 {[%clk 0:00:12]}  Ra8 {[%clk 0:01:39]} 28. b5 {[%clk 0:00:11]}  Kc7 {[%clk 0:01:37]} 29. Rab1 {[%clk 0:00:07]}  f4 {[%clk 0:01:33]} 30. Bd2 {[%clk 0:00:06]}  Nd7 {[%clk 0:01:33]} 31. Ba5+ {[%clk 0:00:06]}  Kc8 {[%clk 0:01:33]} 32. b6 {[%clk 0:00:04]}  Bc6 {[%clk 0:01:27]} 33. Bb4 {[%clk 0:00:03]}  Nc5 {[%clk 0:01:27]} 34. Bxc5 {[%clk 0:00:03]}  dxc5 {[%clk 0:01:28]} 35. Re1 {[%clk 0:00:03]}  Bf6 {[%clk 0:01:26]} 36. Rbd1 {[%clk 0:00:04]}  Kb7 {[%clk 0:01:26]} 37. Rd6 {[%clk 0:00:04]}  Kxb6 {[%clk 0:01:26]} 38. Re6 {[%clk 0:00:05]}  Rxa7 {[%clk 0:01:25]} 39. Rd1 {[%clk 0:00:04]}  Kc7 {[%clk 0:01:26]} 40. h4 {[%clk 0:00:03]}  Ba4 {[%clk 0:01:20]} 41. Rd5 {[%clk 0:00:02]}  Ra5 {[%clk 0:01:17]} 42. g4 {[%clk 0:00:01]}  fxg3 {[%clk 0:01:14]} 43. fxg3 {[%clk 0:00:02]}  h5 {[%clk 0:01:15]} 44. Kg2 {[%clk 0:00:02]}  Bb3 {[%clk 0:01:15]} 45. Re8 {[%clk 0:00:01]}  Bxc4 {[%clk 0:01:15]} 46. Rd1 {[%clk 0:00:01]}  Ra2+ {[%clk 0:01:14]} 47. Kh3 {[%clk 0:00:02]}  Bb5 {[%clk 0:01:15]} 48. Re6 {[%clk 0:00:01]}  Bd7 {[%clk 0:01:15]} 0-1


[Site "https://www.chess.com"]

[Event "Titled Tuesday Blitz July 05 Late 2022"]
[White "Soham Kamotra"]
[Black "Meshkovs, Nikita"]
[WhiteFideId "46647490"]
[BlackFideId "11602740"]
[WhiteElo "2082"]
[BlackElo "2506"]
[Result "0-1"]
[Round "02"]
[TimeControl "180+1"]
[Date "2022.07.05"]
[WhiteClock "0:00:17"]
[BlackClock "0:01:15"]

1. d4 {[%clk 0:03:00]}  Nf6 {[%clk 0:02:59]} 2. Nf3 {[%clk 0:02:58]}  e6 {[%clk 0:02:59]} 3. Bf4 {[%clk 0:02:58]}  c5 {[%clk 0:02:53]} 4. c3 {[%clk 0:02:57]}  d5 {[%clk 0:02:51]} 5. e3 {[%clk 0:02:56]}  Bd6 {[%clk 0:02:52]} 6. Nbd2 {[%clk 0:02:55]}  Qc7 {[%clk 0:02:51]} 7. Bxd6 {[%clk 0:02:40]}  Qxd6 {[%clk 0:02:52]} 8. Ne5 {[%clk 0:02:40]}  O-O {[%clk 0:02:51]} 9. Bd3 {[%clk 0:02:39]}  b6 {[%clk 0:02:37]} 10. Qe2 {[%clk 0:02:33]}  Nfd7 {[%clk 0:02:27]} 11. f4 {[%clk 0:02:31]}  f6 {[%clk 0:02:24]} 12. Qh5 {[%clk 0:02:28]}  f5 {[%clk 0:02:21]} 13. g4 {[%clk 0:02:11]}  Nf6 {[%clk 0:02:21]} 14. Qh4 {[%clk 0:02:09]}  Ne4 {[%clk 0:02:18]} 15. Nxe4 {[%clk 0:02:07]}  fxe4 {[%clk 0:02:18]} 16. Be2 {[%clk 0:01:52]}  cxd4 {[%clk 0:02:14]} 17. cxd4 {[%clk 0:01:47]}  Qb4+ {[%clk 0:02:10]} 18. Kf2 {[%clk 0:01:47]}  Nd7 {[%clk 0:02:06]} 19. Nc6 {[%clk 0:01:35]}  Qd6 {[%clk 0:02:02]} 20. Rhc1 {[%clk 0:01:19]}  Bb7 {[%clk 0:02:02]} 21. Qe7 {[%clk 0:01:18]}  Qxe7 {[%clk 0:01:48]} 22. Nxe7+ {[%clk 0:01:19]}  Kf7 {[%clk 0:01:49]} 23. Nc6 {[%clk 0:01:11]}  Rfc8 {[%clk 0:01:40]} 24. Ne5+ {[%clk 0:01:07]}  Nxe5 {[%clk 0:01:40]} 25. dxe5 {[%clk 0:01:05]}  a5 {[%clk 0:01:35]} 26. Bb5 {[%clk 0:01:03]}  Rc5 {[%clk 0:01:32]} 27. Rxc5 {[%clk 0:00:34]}  bxc5 {[%clk 0:01:32]} 28. f5 {[%clk 0:00:32]}  exf5 {[%clk 0:01:31]} 29. gxf5 {[%clk 0:00:33]}  g6 {[%clk 0:01:31]} 30. Kg3 {[%clk 0:00:22]}  gxf5 {[%clk 0:01:31]} 31. Kf4 {[%clk 0:00:22]}  Rg8 {[%clk 0:01:30]} 32. h3 {[%clk 0:00:20]}  Ke6 {[%clk 0:01:27]} 33. Rc1 {[%clk 0:00:17]}  c4 {[%clk 0:01:15]} 34. Rxc4 {[%clk 0:00:17]}  dxc4 {[%clk 0:01:14]} 35. Bxc4+ {[%clk 0:00:17]}  Bd5 {[%clk 0:01:15]} 0-1


[Site "https://www.chess.com"]

[Event "Titled Tuesday Blitz July 05 Late 2022"]
[White "Svane, Rasmus"]
[Black "Arabidze, Meri"]
[WhiteFideId "4657101"]
[BlackFideId "13604040"]
[WhiteElo "2674"]
[BlackElo "2335"]
[Result "1-0"]
[Round "02"]
[TimeControl "180+1"]
[Date "2022.07.05"]
[WhiteClock "0:00:17"]
[BlackClock "0:00:01"]

1. Nf3 {[%clk 0:03:00]}  f5 {[%clk 0:02:57]} 2. d3 {[%clk 0:03:00]}  d6 {[%clk 0:02:54]} 3. e4 {[%clk 0:03:01]}  e5 {[%clk 0:02:54]} 4. Nc3 {[%clk 0:03:01]}  Nf6 {[%clk 0:02:51]} 5. exf5 {[%clk 0:03:00]}  Bxf5 {[%clk 0:02:52]} 6. d4 {[%clk 0:03:00]}  Nc6 {[%clk 0:02:47]} 7. Bb5 {[%clk 0:02:52]}  a6 {[%clk 0:02:25]} 8. Bxc6+ {[%clk 0:02:49]}  bxc6 {[%clk 0:02:26]} 9. dxe5 {[%clk 0:02:42]}  dxe5 {[%clk 0:02:27]} 10. Qe2 {[%clk 0:02:06]}  Bd6 {[%clk 0:02:21]} 11. Bg5 {[%clk 0:02:01]}  O-O {[%clk 0:02:19]} 12. O-O {[%clk 0:01:52]}  h6 {[%clk 0:02:12]} 13. Bxf6 {[%clk 0:01:51]}  Qxf6 {[%clk 0:02:10]} 14. Ne4 {[%clk 0:01:40]}  Qf7 {[%clk 0:02:07]} 15. Nfd2 {[%clk 0:01:39]}  a5 {[%clk 0:01:55]} 16. a4 {[%clk 0:01:34]}  Qg6 {[%clk 0:01:50]} 17. f3 {[%clk 0:01:32]}  Kh8 {[%clk 0:01:46]} 18. Rad1 {[%clk 0:01:32]}  Rab8 {[%clk 0:01:35]} 19. b3 {[%clk 0:01:31]}  Bb4 {[%clk 0:01:35]} 20. Nc4 {[%clk 0:01:28]}  Bxe4 {[%clk 0:01:19]} 21. Qxe4 {[%clk 0:01:21]}  Qxe4 {[%clk 0:01:18]} 22. fxe4 {[%clk 0:01:21]}  Bc3 {[%clk 0:01:15]} 23. g3 {[%clk 0:01:19]}  Kg8 {[%clk 0:01:08]} 24. Kg2 {[%clk 0:01:11]}  Rxf1 {[%clk 0:01:01]} 25. Kxf1 {[%clk 0:01:07]}  Rf8+ {[%clk 0:00:49]} 26. Ke2 {[%clk 0:01:08]}  g5 {[%clk 0:00:32]} 27. Rd3 {[%clk 0:01:00]}  Bd4 {[%clk 0:00:28]} 28. Rf3 {[%clk 0:01:00]}  Ra8 {[%clk 0:00:20]} 29. Rf6 {[%clk 0:00:49]}  Kg7 {[%clk 0:00:17]} 30. Rxc6 {[%clk 0:00:47]}  Rf8 {[%clk 0:00:16]} 31. Rxc7+ {[%clk 0:00:47]}  Kg6 {[%clk 0:00:16]} 32. Ne3 {[%clk 0:00:46]}  Kh5 {[%clk 0:00:12]} 33. Nf5 {[%clk 0:00:40]}  Kg4 {[%clk 0:00:12]} 34. Nxh6+ {[%clk 0:00:32]}  Kh3 {[%clk 0:00:12]} 35. Nf5 {[%clk 0:00:32]}  Kxh2 {[%clk 0:00:12]} 36. Kf3 {[%clk 0:00:23]}  Kg1 {[%clk 0:00:04]} 37. c3 {[%clk 0:00:21]}  Bf2 {[%clk 0:00:02]} 38. Rd7 {[%clk 0:00:19]}  Kf1 {[%clk 0:00:02]} 39. Rd1+ {[%clk 0:00:17]}  Be1 {[%clk 0:00:02]} 40. b4 {[%clk 0:00:17]}  Rf7 {[%clk 0:00:01]} 41. g4 {[%clk 0:00:16]}  axb4 {[%clk 0:00:01]} 42. cxb4 {[%clk 0:00:17]}  Rf8 {[%clk 0:00:01]} 43. b5 {[%clk 0:00:17]} 1-0


[Site "https://www.chess.com"]

[Event "Titled Tuesday Blitz July 05 Late 2022"]
[White "Swiercz, Dariusz"]
[Black "Kozionov, Kirill"]
[WhiteFideId "1126881"]
[BlackFideId "24101729"]
[WhiteElo "2627"]
[BlackElo "2426"]
[Result "1-0"]
[Round "02"]
[TimeControl "180+1"]
[Date "2022.07.05"]
[WhiteClock "0:00:11"]
[BlackClock "0:00:05"]

1. e4 {[%clk 0:02:58]}  c5 {[%clk 0:02:59]} 2. Nf3 {[%clk 0:02:58]}  d6 {[%clk 0:02:59]} 3. d4 {[%clk 0:02:57]}  cxd4 {[%clk 0:02:59]} 4. Nxd4 {[%clk 0:02:58]}  Nf6 {[%clk 0:02:59]} 5. Nc3 {[%clk 0:02:58]}  a6 {[%clk 0:03:00]} 6. Be2 {[%clk 0:02:52]}  e5 {[%clk 0:03:00]} 7. Nb3 {[%clk 0:02:52]}  Be7 {[%clk 0:03:00]} 8. Bg5 {[%clk 0:02:49]}  Nbd7 {[%clk 0:02:54]} 9. a4 {[%clk 0:02:47]}  b6 {[%clk 0:02:50]} 10. Bc4 {[%clk 0:02:40]}  Bb7 {[%clk 0:02:46]} 11. Nd2 {[%clk 0:02:40]}  O-O {[%clk 0:02:38]} 12. O-O {[%clk 0:02:36]}  h6 {[%clk 0:02:35]} 13. Be3 {[%clk 0:02:33]}  Qc7 {[%clk 0:02:31]} 14. Qe2 {[%clk 0:02:31]}  Rfc8 {[%clk 0:02:23]} 15. Bb3 {[%clk 0:01:53]}  Nc5 {[%clk 0:02:21]} 16. Bxc5 {[%clk 0:01:50]}  Qxc5 {[%clk 0:02:22]} 17. Rfd1 {[%clk 0:01:48]}  Bc6 {[%clk 0:02:05]} 18. Nf1 {[%clk 0:01:39]}  b5 {[%clk 0:02:04]} 19. axb5 {[%clk 0:01:32]}  axb5 {[%clk 0:02:04]} 20. Rxa8 {[%clk 0:01:31]}  Rxa8 {[%clk 0:01:51]} 21. Ng3 {[%clk 0:01:31]}  g6 {[%clk 0:01:40]} 22. Nd5 {[%clk 0:01:13]}  Nxd5 {[%clk 0:01:08]} 23. Bxd5 {[%clk 0:01:13]}  b4 {[%clk 0:00:45]} 24. Nf1 {[%clk 0:01:04]}  Bg5 {[%clk 0:00:42]} 25. g3 {[%clk 0:01:01]}  h5 {[%clk 0:00:41]} 26. h4 {[%clk 0:01:00]}  Bh6 {[%clk 0:00:41]} 27. Kg2 {[%clk 0:00:59]}  Rc8 {[%clk 0:00:34]} 28. Bb3 {[%clk 0:00:21]}  Kg7 {[%clk 0:00:34]} 29. Kg1 {[%clk 0:00:13]}  Rc7 {[%clk 0:00:33]} 30. Nh2 {[%clk 0:00:12]}  Ra7 {[%clk 0:00:31]} 31. Nf3 {[%clk 0:00:12]}  Rd7 {[%clk 0:00:31]} 32. Ng5 {[%clk 0:00:12]}  Bxg5 {[%clk 0:00:24]} 33. hxg5 {[%clk 0:00:13]}  Ra7 {[%clk 0:00:24]} 34. Qf3 {[%clk 0:00:13]}  Kf8 {[%clk 0:00:12]} 35. Kh2 {[%clk 0:00:11]}  Rd7 {[%clk 0:00:08]} 36. Rd2 {[%clk 0:00:08]}  Ke8 {[%clk 0:00:08]} 37. Re2 {[%clk 0:00:07]}  Kd8 {[%clk 0:00:07]} 38. Bxf7 {[%clk 0:00:07]}  Kc7 {[%clk 0:00:05]} 39. Bxg6 {[%clk 0:00:07]}  d5 {[%clk 0:00:04]} 40. Bf5 {[%clk 0:00:06]}  Rg7 {[%clk 0:00:04]} 41. g6 {[%clk 0:00:06]}  d4 {[%clk 0:00:04]} 42. Qxh5 {[%clk 0:00:06]}  Qe7 {[%clk 0:00:03]} 43. Qh6 {[%clk 0:00:06]}  Qf6 {[%clk 0:00:03]} 44. Re1 {[%clk 0:00:06]}  Kb6 {[%clk 0:00:03]} 45. Kg1 {[%clk 0:00:05]}  Rg8 {[%clk 0:00:03]} 46. Qh4 {[%clk 0:00:06]}  Qf8 {[%clk 0:00:02]} 47. Qg5 {[%clk 0:00:05]}  Qg7 {[%clk 0:00:02]} 48. Be6 {[%clk 0:00:05]}  Rh8 {[%clk 0:00:03]} 49. Bf5 {[%clk 0:00:04]}  Rf8 {[%clk 0:00:03]} 50. g4 {[%clk 0:00:04]}  Rh8 {[%clk 0:00:04]} 51. Kg2 {[%clk 0:00:04]}  Rg8 {[%clk 0:00:04]} 52. Rh1 {[%clk 0:00:05]}  Qf8 {[%clk 0:00:04]} 53. Rh7 {[%clk 0:00:05]}  Qc5 {[%clk 0:00:05]} 54. Qe7 {[%clk 0:00:05]}  Qxc2 {[%clk 0:00:04]} 55. Qc7+ {[%clk 0:00:06]}  Kb5 {[%clk 0:00:04]} 56. Qxe5+ {[%clk 0:00:07]}  Ka4 {[%clk 0:00:04]} 57. Ra7+ {[%clk 0:00:07]}  Kb3 {[%clk 0:00:04]} 58. Be6+ {[%clk 0:00:08]}  Kxb2 {[%clk 0:00:04]} 59. Qxd4+ {[%clk 0:00:08]}  Kb1 {[%clk 0:00:03]} 60. Ba2+ {[%clk 0:00:07]}  Kc1 {[%clk 0:00:03]} 61. Bxg8 {[%clk 0:00:08]}  Bxe4+ {[%clk 0:00:03]} 62. Kg3 {[%clk 0:00:08]}  Bd3 {[%clk 0:00:02]} 63. Rb7 {[%clk 0:00:07]}  Qd2 {[%clk 0:00:01]} 64. Qe3 {[%clk 0:00:08]}  b3 {[%clk 0:00:01]} 65. Rxb3 {[%clk 0:00:08]}  Kc2 {[%clk 0:00:01]} 66. Rxd3 {[%clk 0:00:08]}  Qxd3 {[%clk 0:00:01]} 67. Qxd3+ {[%clk 0:00:08]}  Kxd3 {[%clk 0:00:02]} 68. g7 {[%clk 0:00:09]}  Kd4 {[%clk 0:00:02]} 69. Ba2 {[%clk 0:00:10]}  Ke5 {[%clk 0:00:03]} 70. g8=Q {[%clk 0:00:10]}  Kf6 {[%clk 0:00:04]} 71. Qf7+ {[%clk 0:00:10]}  Ke5 {[%clk 0:00:04]} 72. Qd5+ {[%clk 0:00:10]}  Kf6 {[%clk 0:00:04]} 73. Qe6+ {[%clk 0:00:11]}  Kg7 {[%clk 0:00:04]} 74. Qf7+ {[%clk 0:00:11]}  Kh6 {[%clk 0:00:05]} 75. Qh5+ {[%clk 0:00:11]}  Kg7 {[%clk 0:00:05]} 76. Qg5+ {[%clk 0:00:11]}  Kh8 {[%clk 0:00:05]} 77. Qg8# {[%clk 0:00:11]} 1-0


[Site "https://www.chess.com"]